[Event "Titled Tuesday Blitz April 12 Late 2022"]
[White "Volkov, Maksim"]
[Black "Rasulov, Vugar"]
[WhiteFideId "54123070"]
[BlackFideId "13402390"]
[WhiteElo "2081"]
[BlackElo "2560"]
[Result "0-1"]
[Round "07"]
[TimeControl "180+1"]
[Date "2022.04.12"]
[WhiteClock "0:00:05"]
[BlackClock "0:00:14"]

1. d4 {[%clk 0:03:00]}  d5 {[%clk 0:03:00]} 2. c4 {[%clk 0:03:01]}  e6 {[%clk 0:03:00]} 3. Nf3 {[%clk 0:03:00]}  c6 {[%clk 0:03:00]} 4. g3 {[%clk 0:02:58]}  Nf6 {[%clk 0:03:00]} 5. Bg2 {[%clk 0:02:57]}  Bb4+ {[%clk 0:03:00]} 6. Bd2 {[%clk 0:02:57]}  Bd6 {[%clk 0:03:00]} 7. O-O {[%clk 0:02:57]}  O-O {[%clk 0:03:01]} 8. Qc2 {[%clk 0:02:55]}  b6 {[%clk 0:03:01]} 9. Rc1 {[%clk 0:02:49]}  Bb7 {[%clk 0:03:00]} 10. a4 {[%clk 0:02:49]}  Na6 {[%clk 0:02:56]} 11. a5 {[%clk 0:02:45]}  Rc8 {[%clk 0:02:52]} 12. b3 {[%clk 0:02:18]}  c5 {[%clk 0:02:48]} 13. dxc5 {[%clk 0:02:08]}  Bxc5 {[%clk 0:02:46]} 14. Qb2 {[%clk 0:01:59]}  Ne4 {[%clk 0:02:37]} 15. Be1 {[%clk 0:01:58]}  dxc4 {[%clk 0:02:38]} 16. Rxc4 {[%clk 0:01:57]}  Nd6 {[%clk 0:02:25]} 17. Rc1 {[%clk 0:01:54]}  Ne4 {[%clk 0:02:11]} 18. Nc3 {[%clk 0:01:49]}  Qf6 {[%clk 0:02:11]} 19. Na4 {[%clk 0:01:46]}  Qxb2 {[%clk 0:02:04]} 20. Nxb2 {[%clk 0:01:46]}  b5 {[%clk 0:01:52]} 21. Nd3 {[%clk 0:01:32]}  Be7 {[%clk 0:01:52]} 22. Nd4 {[%clk 0:01:23]}  Bf6 {[%clk 0:01:46]} 23. e3 {[%clk 0:01:19]}  Bd5 {[%clk 0:01:36]} 24. Rab1 {[%clk 0:01:10]}  Bxd4 {[%clk 0:01:33]} 25. exd4 {[%clk 0:01:09]}  Nf6 {[%clk 0:01:34]} 26. Nc5 {[%clk 0:01:05]}  Nxc5 {[%clk 0:01:30]} 27. dxc5 {[%clk 0:01:05]}  Bxg2 {[%clk 0:01:23]} 28. Kxg2 {[%clk 0:01:05]}  Nd5 {[%clk 0:01:24]} 29. Bd2 {[%clk 0:01:02]}  Rfd8 {[%clk 0:01:23]} 30. c6 {[%clk 0:00:53]}  Ne7 {[%clk 0:01:20]} 31. Be3 {[%clk 0:00:42]}  Nxc6 {[%clk 0:01:17]} 32. a6 {[%clk 0:00:42]}  Nb4 {[%clk 0:01:09]} 33. Rxc8 {[%clk 0:00:32]}  Rxc8 {[%clk 0:01:10]} 34. Ra1 {[%clk 0:00:31]}  Rc6 {[%clk 0:01:05]} 35. Ra5 {[%clk 0:00:31]}  Nxa6 {[%clk 0:00:58]} 36. Rxb5 {[%clk 0:00:30]}  Rc7 {[%clk 0:00:47]} 37. Ra5 {[%clk 0:00:25]}  Nb4 {[%clk 0:00:47]} 38. Rxa7 {[%clk 0:00:24]}  Rc8 {[%clk 0:00:48]} 39. Rb7 {[%clk 0:00:23]}  Nd5 {[%clk 0:00:48]} 40. Bd4 {[%clk 0:00:22]}  f6 {[%clk 0:00:49]} 41. b4 {[%clk 0:00:21]}  e5 {[%clk 0:00:44]} 42. Bc5 {[%clk 0:00:21]}  h5 {[%clk 0:00:39]} 43. Kf3 {[%clk 0:00:20]}  f5 {[%clk 0:00:32]} 44. h3 {[%clk 0:00:19]}  Nc3 {[%clk 0:00:27]} 45. Ke3 {[%clk 0:00:18]}  Ne4 {[%clk 0:00:26]} 46. Bb6 {[%clk 0:00:15]}  Rc3+ {[%clk 0:00:25]} 47. Ke2 {[%clk 0:00:15]}  Rc2+ {[%clk 0:00:26]} 48. Kf3 {[%clk 0:00:15]}  Rb2 {[%clk 0:00:19]} 49. Ba7 {[%clk 0:00:14]}  g5 {[%clk 0:00:17]} 50. b5 {[%clk 0:00:13]}  g4+ {[%clk 0:00:17]} 51. hxg4 {[%clk 0:00:13]}  hxg4+ {[%clk 0:00:18]} 52. Kg2 {[%clk 0:00:13]}  Rb1 {[%clk 0:00:17]} 53. Be3 {[%clk 0:00:09]}  Nc3 {[%clk 0:00:13]} 54. b6 {[%clk 0:00:08]}  Ne2 {[%clk 0:00:13]} 55. Rb8+ {[%clk 0:00:08]}  Kf7 {[%clk 0:00:13]} 56. b7 {[%clk 0:00:09]}  f4 {[%clk 0:00:14]} 57. gxf4 {[%clk 0:00:08]}  exf4 {[%clk 0:00:15]} 58. Bxf4 {[%clk 0:00:04]}  Nxf4+ {[%clk 0:00:16]} 59. Kg3 {[%clk 0:00:04]}  Nh5+ {[%clk 0:00:13]} 60. Kxg4 {[%clk 0:00:04]}  Nf6+ {[%clk 0:00:14]} 61. Kf5 {[%clk 0:00:05]}  Rb5+ {[%clk 0:00:13]} 62. Kf4 {[%clk 0:00:05]}  Nd7 {[%clk 0:00:13]} 63. Rh8 {[%clk 0:00:05]}  Rxb7 {[%clk 0:00:14]} 64. Rh7+ {[%clk 0:00:06]}  Ke6 {[%clk 0:00:14]} 65. Kf3 {[%clk 0:00:05]}  Ne5+ {[%clk 0:00:14]} 0-1


[Site "https://www.chess.com"]

[Event "Titled Tuesday Blitz April 12 Late 2022"]
[White "Winkels, Marcel"]
[Black "Putri, Regita Desyari"]
[WhiteFideId "1003887"]
[BlackFideId "7109083"]
[WhiteElo "1900"]
[BlackElo "1930"]
[Result "0-1"]
[Round "07"]
[TimeControl "180+1"]
[Date "2022.04.13"]
[WhiteClock "0:00:12"]
[BlackClock "0:00:17"]

1. e4 {[%clk 0:03:00]}  e5 {[%clk 0:02:57]} 2. Nf3 {[%clk 0:02:59]}  Nc6 {[%clk 0:02:58]} 3. Bc4 {[%clk 0:02:59]}  Bc5 {[%clk 0:02:58]} 4. c3 {[%clk 0:02:55]}  Nf6 {[%clk 0:02:58]} 5. d4 {[%clk 0:02:55]}  exd4 {[%clk 0:02:58]} 6. cxd4 {[%clk 0:02:55]}  Bb4+ {[%clk 0:02:58]} 7. Nbd2 {[%clk 0:02:52]}  Nxe4 {[%clk 0:02:50]} 8. d5 {[%clk 0:02:51]}  Ne7 {[%clk 0:02:45]} 9. Qc2 {[%clk 0:02:50]}  Nxd2 {[%clk 0:02:38]} 10. Bxd2 {[%clk 0:02:49]}  Bxd2+ {[%clk 0:02:38]} 11. Nxd2 {[%clk 0:02:49]}  O-O {[%clk 0:02:36]} 12. O-O-O {[%clk 0:02:48]}  d6 {[%clk 0:02:35]} 13. h4 {[%clk 0:02:46]}  Bf5 {[%clk 0:02:35]} 14. Qc3 {[%clk 0:02:36]}  a6 {[%clk 0:02:31]} 15. f3 {[%clk 0:02:36]}  b5 {[%clk 0:02:31]} 16. Bb3 {[%clk 0:02:36]}  c5 {[%clk 0:02:26]} 17. g4 {[%clk 0:02:28]}  Bd7 {[%clk 0:02:25]} 18. Bc2 {[%clk 0:02:18]}  c4 {[%clk 0:02:17]} 19. Ne4 {[%clk 0:02:14]}  Qb6 {[%clk 0:01:41]} 20. Ng5 {[%clk 0:02:08]}  f5 {[%clk 0:01:40]} 21. Ne6 {[%clk 0:01:59]}  Bxe6 {[%clk 0:01:40]} 22. dxe6 {[%clk 0:01:59]}  f4 {[%clk 0:01:23]} 23. h5 {[%clk 0:01:55]}  h6 {[%clk 0:01:07]} 24. g5 {[%clk 0:01:53]}  hxg5 {[%clk 0:00:49]} 25. h6 {[%clk 0:01:52]}  Qe3+ {[%clk 0:00:50]} 26. Qxe3 {[%clk 0:01:29]}  fxe3 {[%clk 0:00:50]} 27. hxg7 {[%clk 0:01:29]}  Kxg7 {[%clk 0:00:49]} 28. Rxd6 {[%clk 0:01:27]}  Rad8 {[%clk 0:00:43]} 29. Rh7+ {[%clk 0:01:10]}  Kf6 {[%clk 0:00:43]} 30. Rxd8 {[%clk 0:01:09]}  Rxd8 {[%clk 0:00:42]} 31. Rh6+ {[%clk 0:00:51]}  Ke5 {[%clk 0:00:41]} 32. Bd1 {[%clk 0:00:48]}  Rd6 {[%clk 0:00:35]} 33. Rh5 {[%clk 0:00:45]}  Kf4 {[%clk 0:00:33]} 34. Rh6 {[%clk 0:00:44]}  Kf5 {[%clk 0:00:25]} 35. Bc2+ {[%clk 0:00:39]}  Ke5 {[%clk 0:00:22]} 36. Bd1 {[%clk 0:00:32]}  Rxe6 {[%clk 0:00:22]} 37. Rh5 {[%clk 0:00:29]}  Kf4 {[%clk 0:00:22]} 38. Be2 {[%clk 0:00:28]}  Nf5 {[%clk 0:00:21]} 39. Rh2 {[%clk 0:00:18]}  Nd4 {[%clk 0:00:19]} 40. Kd1 {[%clk 0:00:17]}  Nxf3 {[%clk 0:00:17]} 41. Rh1 {[%clk 0:00:12]}  g4 {[%clk 0:00:17]} 0-1


[Site "https://www.chess.com"]

[Event "Titled Tuesday Blitz April 12 Late 2022"]
[White "Xiong, Jeffery"]
[Black "Alekseenko, Kirill"]
[WhiteFideId "2047640"]
[BlackFideId "4135539"]
[WhiteElo "2727"]
[BlackElo "2682"]
[Result "1/2-1/2"]
[Round "07"]
[TimeControl "180+1"]
[Date "2022.04.12"]
[WhiteClock "0:00:57"]
[BlackClock "0:00:42"]

1. e4 {[%clk 0:03:00]}  e5 {[%clk 0:02:58]} 2. Nf3 {[%clk 0:03:01]}  Nc6 {[%clk 0:02:58]} 3. Nc3 {[%clk 0:03:02]}  Nf6 {[%clk 0:02:57]} 4. d4 {[%clk 0:03:02]}  exd4 {[%clk 0:02:58]} 5. Nxd4 {[%clk 0:03:03]}  Bb4 {[%clk 0:02:58]} 6. Nxc6 {[%clk 0:03:04]}  bxc6 {[%clk 0:02:59]} 7. Bd3 {[%clk 0:03:05]}  O-O {[%clk 0:02:58]} 8. O-O {[%clk 0:03:05]}  d5 {[%clk 0:02:59]} 9. exd5 {[%clk 0:03:06]}  cxd5 {[%clk 0:02:59]} 10. h3 {[%clk 0:03:06]}  c6 {[%clk 0:02:55]} 11. Qf3 {[%clk 0:03:07]}  Re8 {[%clk 0:02:51]} 12. Bf4 {[%clk 0:03:07]}  Bd6 {[%clk 0:02:50]} 13. Ne2 {[%clk 0:03:07]}  Rb8 {[%clk 0:02:48]} 14. b3 {[%clk 0:03:08]}  Be6 {[%clk 0:02:38]} 15. Rfd1 {[%clk 0:03:07]}  Bxf4 {[%clk 0:02:31]} 16. Nxf4 {[%clk 0:03:08]}  Qd7 {[%clk 0:02:19]} 17. c4 {[%clk 0:03:07]}  d4 {[%clk 0:02:11]} 18. c5 {[%clk 0:02:21]}  Rbd8 {[%clk 0:02:10]} 19. Nxe6 {[%clk 0:02:14]}  Qxe6 {[%clk 0:02:10]} 20. Bc4 {[%clk 0:02:14]}  Qe4 {[%clk 0:02:03]} 21. Qg3 {[%clk 0:02:14]}  Qe5 {[%clk 0:01:55]} 22. Qxe5 {[%clk 0:01:57]}  Rxe5 {[%clk 0:01:55]} 23. Re1 {[%clk 0:01:58]}  Rxc5 {[%clk 0:01:33]} 24. Re7 {[%clk 0:01:58]}  Rd7 {[%clk 0:01:26]} 25. Rxd7 {[%clk 0:01:58]}  Nxd7 {[%clk 0:01:26]} 26. Rd1 {[%clk 0:01:58]}  Nb6 {[%clk 0:01:10]} 27. Rxd4 {[%clk 0:01:58]}  g6 {[%clk 0:01:10]} 28. g4 {[%clk 0:01:38]}  Kg7 {[%clk 0:01:05]} 29. Bd3 {[%clk 0:01:07]}  Rc1+ {[%clk 0:01:01]} 30. Bf1 {[%clk 0:01:08]}  c5 {[%clk 0:00:52]} 31. Rd2 {[%clk 0:01:06]}  c4 {[%clk 0:00:43]} 32. bxc4 {[%clk 0:01:06]}  Nxc4 {[%clk 0:00:44]} 33. Rd7 {[%clk 0:01:06]}  Ne5 {[%clk 0:00:43]} 34. Rxa7 {[%clk 0:01:00]}  Nf3+ {[%clk 0:00:43]} 35. Kg2 {[%clk 0:01:00]}  Nh4+ {[%clk 0:00:43]} 36. Kg1 {[%clk 0:00:57]}  Nf3+ {[%clk 0:00:41]} 37. Kg2 {[%clk 0:00:57]}  Nh4+ {[%clk 0:00:42]} 38. Kg1 {[%clk 0:00:57]}  Nf3+ {[%clk 0:00:42]} 1/2-1/2


[Site "https://www.chess.com"]

[Event "Titled Tuesday Blitz April 12 Late 2022"]
[White "Yedidia, Daniel"]
[Black "Olcayoz, Alper"]
[WhiteFideId "30905907"]
[BlackFideId "6300405"]
[WhiteElo "2601"]
[BlackElo "2398"]
[Result "1-0"]
[Round "07"]
[TimeControl "180+1"]
[Date "2022.04.13"]
[WhiteClock "0:00:13"]
[BlackClock "0:00:01"]

1. d4 {[%clk 0:03:00]}  Nf6 {[%clk 0:02:53]} 2. c4 {[%clk 0:02:59]}  e5 {[%clk 0:02:53]} 3. d5 {[%clk 0:02:59]}  Bc5 {[%clk 0:02:52]} 4. Nc3 {[%clk 0:02:58]}  d6 {[%clk 0:02:50]} 5. h3 {[%clk 0:02:57]}  a6 {[%clk 0:02:49]} 6. e4 {[%clk 0:02:57]}  h6 {[%clk 0:02:48]} 7. Bd3 {[%clk 0:02:57]}  Nbd7 {[%clk 0:02:48]} 8. Nge2 {[%clk 0:02:58]}  Nf8 {[%clk 0:02:47]} 9. O-O {[%clk 0:02:57]}  Ng6 {[%clk 0:02:47]} 10. a3 {[%clk 0:02:57]}  Nh5 {[%clk 0:02:40]} 11. b4 {[%clk 0:02:55]}  Ba7 {[%clk 0:02:39]} 12. Kh2 {[%clk 0:02:50]}  Qh4 {[%clk 0:02:34]} 13. Be3 {[%clk 0:02:38]}  Ngf4 {[%clk 0:02:20]} 14. Ng1 {[%clk 0:02:15]}  Nxd3 {[%clk 0:02:01]} 15. Qxd3 {[%clk 0:02:12]}  Nf4 {[%clk 0:02:02]} 16. Qd2 {[%clk 0:02:03]}  Qf6 {[%clk 0:01:45]} 17. g3 {[%clk 0:01:57]}  Nh5 {[%clk 0:01:27]} 18. c5 {[%clk 0:01:57]}  g5 {[%clk 0:01:25]} 19. Rac1 {[%clk 0:01:48]}  Nf4 {[%clk 0:01:18]} 20. cxd6 {[%clk 0:01:34]}  cxd6 {[%clk 0:01:16]} 21. Bxa7 {[%clk 0:01:34]}  Rxa7 {[%clk 0:01:16]} 22. Qe3 {[%clk 0:01:34]}  Ra8 {[%clk 0:01:14]} 23. gxf4 {[%clk 0:01:34]}  gxf4 {[%clk 0:01:14]} 24. Qf3 {[%clk 0:01:32]}  h5 {[%clk 0:01:12]} 25. Nge2 {[%clk 0:01:24]}  Bg4 {[%clk 0:01:11]} 26. Qd3 {[%clk 0:01:17]}  f3 {[%clk 0:00:41]} 27. Qe3 {[%clk 0:00:55]}  fxe2 {[%clk 0:00:39]} 28. Nxe2 {[%clk 0:00:54]}  Bxe2 {[%clk 0:00:36]} 29. Qxe2 {[%clk 0:00:54]}  Qf4+ {[%clk 0:00:36]} 30. Kh1 {[%clk 0:00:55]}  Rg8 {[%clk 0:00:28]} 31. Rg1 {[%clk 0:00:47]}  Rxg1+ {[%clk 0:00:25]} 32. Rxg1 {[%clk 0:00:43]}  Ke7 {[%clk 0:00:21]} 33. Rg3 {[%clk 0:00:40]}  Rc8 {[%clk 0:00:20]} 34. Qe3 {[%clk 0:00:36]}  Rc1+ {[%clk 0:00:19]} 35. Kg2 {[%clk 0:00:36]}  Qxe3 {[%clk 0:00:12]} 36. Rxe3 {[%clk 0:00:37]}  h4 {[%clk 0:00:08]} 37. Kf3 {[%clk 0:00:37]}  Rg1 {[%clk 0:00:06]} 38. Rc3 {[%clk 0:00:37]}  Kd7 {[%clk 0:00:07]} 39. Rb3 {[%clk 0:00:30]}  Rg5 {[%clk 0:00:06]} 40. a4 {[%clk 0:00:29]}  f5 {[%clk 0:00:06]} 41. exf5 {[%clk 0:00:28]}  Rxf5+ {[%clk 0:00:07]} 42. Kg4 {[%clk 0:00:29]}  Rf4+ {[%clk 0:00:08]} 43. Kg5 {[%clk 0:00:29]}  b5 {[%clk 0:00:09]} 44. axb5 {[%clk 0:00:27]}  axb5 {[%clk 0:00:09]} 45. f3 {[%clk 0:00:25]}  Ke7 {[%clk 0:00:06]} 46. Rb1 {[%clk 0:00:24]}  Rxf3 {[%clk 0:00:06]} 47. Kxh4 {[%clk 0:00:24]}  Rf4+ {[%clk 0:00:06]} 48. Kg5 {[%clk 0:00:23]}  Rf2 {[%clk 0:00:05]} 49. Rg1 {[%clk 0:00:22]}  e4 {[%clk 0:00:05]} 50. h4 {[%clk 0:00:22]}  e3 {[%clk 0:00:05]} 51. h5 {[%clk 0:00:20]}  e2 {[%clk 0:00:06]} 52. Re1 {[%clk 0:00:20]}  Rg2+ {[%clk 0:00:05]} 53. Kh4 {[%clk 0:00:20]}  Kf6 {[%clk 0:00:05]} 54. Kh3 {[%clk 0:00:20]}  Rf2 {[%clk 0:00:05]} 55. Kg3 {[%clk 0:00:20]}  Rf5 {[%clk 0:00:05]} 56. Rxe2 {[%clk 0:00:20]}  Rxd5 {[%clk 0:00:04]} 57. Rh2 {[%clk 0:00:16]}  Kg7 {[%clk 0:00:04]} 58. Rh4 {[%clk 0:00:15]}  Kh6 {[%clk 0:00:03]} 59. Kf3 {[%clk 0:00:14]}  Rd3+ {[%clk 0:00:01]} 60. Ke4 {[%clk 0:00:13]}  Rc3 {[%clk 0:00:01]} 61. Kd5 {[%clk 0:00:13]}  Rd3+ {[%clk 0:00:01]} 62. Kc6 {[%clk 0:00:13]} 1-0


[Site "https://www.chess.com"]

[Event "Titled Tuesday Blitz April 12 Late 2022"]
[White "profaVa"]
[Black "Maranhao,Jose Renato Ruiz"]
[BlackFideId "2135175"]
[WhiteElo "2413"]
[BlackElo "1970"]
[Result "1-0"]
[Round "07"]
[TimeControl "180+1"]
[Date "2022.04.13"]
[WhiteClock "0:01:01"]
[BlackClock "0:00:01"]

1. e4 {[%clk 0:02:57]}  c6 {[%clk 0:02:59]} 2. d4 {[%clk 0:02:56]}  d5 {[%clk 0:02:58]} 3. Nc3 {[%clk 0:02:57]}  dxe4 {[%clk 0:02:57]} 4. Nxe4 {[%clk 0:02:58]}  Bf5 {[%clk 0:02:58]} 5. Ng3 {[%clk 0:02:58]}  Bg6 {[%clk 0:02:58]} 6. N3e2 {[%clk 0:02:57]}  e5 {[%clk 0:02:56]} 7. Nf3 {[%clk 0:02:56]}  exd4 {[%clk 0:02:34]} 8. Nexd4 {[%clk 0:02:54]}  Nf6 {[%clk 0:02:13]} 9. Bc4 {[%clk 0:02:52]}  Be7 {[%clk 0:02:07]} 10. O-O {[%clk 0:02:49]}  O-O {[%clk 0:02:07]} 11. c3 {[%clk 0:02:47]}  Nbd7 {[%clk 0:02:05]} 12. Bf4 {[%clk 0:02:45]}  Qb6 {[%clk 0:01:49]} 13. b4 {[%clk 0:02:40]}  a5 {[%clk 0:01:40]} 14. a3 {[%clk 0:02:39]}  Rfd8 {[%clk 0:01:16]} 15. Qb3 {[%clk 0:02:36]}  a4 {[%clk 0:01:13]} 16. Qa2 {[%clk 0:02:36]}  Rac8 {[%clk 0:00:52]} 17. Ng5 {[%clk 0:02:35]}  Nd5 {[%clk 0:00:46]} 18. Be3 {[%clk 0:02:14]}  Nxe3 {[%clk 0:00:28]} 19. Bxf7+ {[%clk 0:02:13]}  Kh8 {[%clk 0:00:24]} 20. Bxg6 {[%clk 0:01:36]}  Bxg5 {[%clk 0:00:14]} 21. fxe3 {[%clk 0:01:24]}  Bxe3+ {[%clk 0:00:15]} 22. Kh1 {[%clk 0:01:24]}  hxg6 {[%clk 0:00:16]} 23. Ne6 {[%clk 0:01:22]}  Re8 {[%clk 0:00:09]} 24. Rf3 {[%clk 0:01:21]}  Nf6 {[%clk 0:00:05]} 25. Raf1 {[%clk 0:01:16]}  c5 {[%clk 0:00:04]} 26. Rh3+ {[%clk 0:01:14]}  Bh6 {[%clk 0:00:03]} 27. Ng5 {[%clk 0:01:14]}  cxb4 {[%clk 0:00:02]} 28. Nf7+ {[%clk 0:01:14]}  Kh7 {[%clk 0:00:03]} 29. Ng5+ {[%clk 0:01:05]}  Kh8 {[%clk 0:00:02]} 30. Qf7 {[%clk 0:01:03]}  bxc3 {[%clk 0:00:01]} 31. Qxg6 {[%clk 0:01:01]} 1-0


[Site "https://www.chess.com"]

[Event "Titled Tuesday Blitz April 12 Late 2022"]
[White "Andreikin, Dmitry"]
[Black "Ibarra Jerez, Jose Carlos"]
[WhiteFideId "4158814"]
[BlackFideId "2226332"]
[WhiteElo "2736"]
[BlackElo "2626"]
[Result "1-0"]
[Round "08"]
[TimeControl "180+1"]
[Date "2022.04.12"]
[WhiteClock "0:01:36"]
[BlackClock "0:00:15"]

1. d4 {[%clk 0:03:00]}  Nf6 {[%clk 0:02:59]} 2. c4 {[%clk 0:03:01]}  d6 {[%clk 0:02:59]} 3. Nf3 {[%clk 0:02:59]}  g6 {[%clk 0:02:59]} 4. Nc3 {[%clk 0:02:58]}  Bf5 {[%clk 0:03:00]} 5. Qb3 {[%clk 0:02:50]}  b6 {[%clk 0:03:00]} 6. g3 {[%clk 0:02:48]}  Bg7 {[%clk 0:02:55]} 7. Bg2 {[%clk 0:02:48]}  Nc6 {[%clk 0:02:55]} 8. Qa4 {[%clk 0:02:31]}  Bd7 {[%clk 0:02:53]} 9. Qc2 {[%clk 0:02:29]}  Bf5 {[%clk 0:02:41]} 10. e4 {[%clk 0:02:22]}  Bg4 {[%clk 0:02:41]} 11. Be3 {[%clk 0:02:16]}  e5 {[%clk 0:02:23]} 12. dxe5 {[%clk 0:02:14]}  dxe5 {[%clk 0:02:06]} 13. Rd1 {[%clk 0:02:14]}  Qc8 {[%clk 0:02:04]} 14. Qa4 {[%clk 0:02:10]}  Bd7 {[%clk 0:01:56]} 15. Rxd7 {[%clk 0:01:51]}  Qxd7 {[%clk 0:01:54]} 16. Bh3 {[%clk 0:01:52]}  Qxh3 {[%clk 0:01:38]} 17. Qxc6+ {[%clk 0:01:51]}  Ke7 {[%clk 0:01:38]} 18. Bg5 {[%clk 0:01:40]}  Rad8 {[%clk 0:00:58]} 19. Qxc7+ {[%clk 0:01:38]}  Ke8 {[%clk 0:00:43]} 20. Nd5 {[%clk 0:01:37]}  Qe6 {[%clk 0:00:19]} 21. Qxa7 {[%clk 0:01:37]}  h6 {[%clk 0:00:15]} 22. Nc7+ {[%clk 0:01:36]} 1-0


[Site "https://www.chess.com"]

[Event "Titled Tuesday Blitz April 12 Late 2022"]
[White "Bas Mas, Jose Joaquin"]
[Black "Demchenko, Anton"]
[WhiteFideId "22219064"]
[BlackFideId "4160258"]
[WhiteElo "2394"]
[BlackElo "2826"]
[Result "0-1"]
[Round "08"]
[TimeControl "180+1"]
[Date "2022.04.13"]
[WhiteClock "0:00:38"]
[BlackClock "0:01:46"]

1. e4 {[%clk 0:02:55]}  e5 {[%clk 0:03:00]} 2. Nf3 {[%clk 0:02:55]}  Nc6 {[%clk 0:03:01]} 3. Bc4 {[%clk 0:02:53]}  Nf6 {[%clk 0:03:01]} 4. d3 {[%clk 0:02:53]}  h6 {[%clk 0:03:00]} 5. O-O {[%clk 0:02:53]}  d6 {[%clk 0:03:00]} 6. c3 {[%clk 0:02:53]}  g6 {[%clk 0:03:01]} 7. Nbd2 {[%clk 0:02:53]}  Bg7 {[%clk 0:03:01]} 8. Re1 {[%clk 0:02:54]}  O-O {[%clk 0:03:02]} 9. Nf1 {[%clk 0:02:53]}  Nh7 {[%clk 0:03:00]} 10. h3 {[%clk 0:02:43]}  Kh8 {[%clk 0:03:01]} 11. Ng3 {[%clk 0:02:38]}  f5 {[%clk 0:03:01]} 12. d4 {[%clk 0:02:30]}  f4 {[%clk 0:03:00]} 13. Nf1 {[%clk 0:02:27]}  g5 {[%clk 0:02:59]} 14. a4 {[%clk 0:02:22]}  Qe8 {[%clk 0:02:53]} 15. a5 {[%clk 0:02:18]}  a6 {[%clk 0:02:53]} 16. dxe5 {[%clk 0:02:09]}  dxe5 {[%clk 0:02:38]} 17. N1h2 {[%clk 0:02:07]}  h5 {[%clk 0:02:37]} 18. Bd5 {[%clk 0:01:43]}  Bf6 {[%clk 0:02:37]} 19. b3 {[%clk 0:01:31]}  g4 {[%clk 0:02:37]} 20. hxg4 {[%clk 0:01:29]}  hxg4 {[%clk 0:02:38]} 21. Nd2 {[%clk 0:01:29]}  Qg6 {[%clk 0:02:38]} 22. Ba3 {[%clk 0:01:27]}  Rd8 {[%clk 0:02:39]} 23. Nc4 {[%clk 0:01:25]}  Kg7 {[%clk 0:02:31]} 24. Ra2 {[%clk 0:01:25]}  Rh8 {[%clk 0:02:28]} 25. Rd2 {[%clk 0:01:09]}  Ng5 {[%clk 0:02:29]} 26. Nxg4 {[%clk 0:01:02]}  Qh5 {[%clk 0:02:29]} 27. f3 {[%clk 0:00:56]}  Bxg4 {[%clk 0:02:29]} 28. fxg4 {[%clk 0:00:54]}  Qh2+ {[%clk 0:02:30]} 29. Kf1 {[%clk 0:00:50]}  f3 {[%clk 0:02:17]} 30. gxf3 {[%clk 0:00:49]}  Qg3 {[%clk 0:02:09]} 31. Rf2 {[%clk 0:00:43]}  Rh1+ {[%clk 0:01:45]} 32. Ke2 {[%clk 0:00:42]}  Nh3 {[%clk 0:01:46]} 33. Rxh1 {[%clk 0:00:39]}  Qxf2+ {[%clk 0:01:46]} 34. Kd3 {[%clk 0:00:38]}  Nf4# {[%clk 0:01:46]} 0-1


[Site "https://www.chess.com"]

[Event "Titled Tuesday Blitz April 12 Late 2022"]
[White "Bilych, Olexiy"]
[Black "Bachmann, Axel"]
[WhiteFideId "14156504"]
[BlackFideId "3700488"]
[WhiteElo "2176"]
[BlackElo "2587"]
[Result "1-0"]
[Round "08"]
[TimeControl "180+1"]
[Date "2022.04.13"]
[WhiteClock "0:01:36"]
[BlackClock "0:00:10"]

1. e4 {[%clk 0:02:59]}  c5 {[%clk 0:02:59]} 2. Nf3 {[%clk 0:02:54]}  d6 {[%clk 0:02:54]} 3. d4 {[%clk 0:02:54]}  cxd4 {[%clk 0:02:54]} 4. Nxd4 {[%clk 0:02:55]}  Nf6 {[%clk 0:02:55]} 5. Nc3 {[%clk 0:02:56]}  a6 {[%clk 0:02:55]} 6. Bg5 {[%clk 0:02:56]}  Nbd7 {[%clk 0:02:53]} 7. Bc4 {[%clk 0:02:56]}  Qb6 {[%clk 0:02:53]} 8. O-O {[%clk 0:02:56]}  Qc5 {[%clk 0:02:52]} 9. Bd5 {[%clk 0:02:56]}  e6 {[%clk 0:02:49]} 10. Re1 {[%clk 0:02:52]}  Ne5 {[%clk 0:02:40]} 11. Be3 {[%clk 0:02:51]}  Qc7 {[%clk 0:02:38]} 12. Bb3 {[%clk 0:02:51]}  Be7 {[%clk 0:02:33]} 13. f4 {[%clk 0:02:49]}  Neg4 {[%clk 0:02:22]} 14. Bc1 {[%clk 0:02:50]}  h5 {[%clk 0:01:57]} 15. h3 {[%clk 0:02:49]}  Nh6 {[%clk 0:01:57]} 16. f5 {[%clk 0:02:48]}  e5 {[%clk 0:01:30]} 17. Nf3 {[%clk 0:02:46]}  Bd7 {[%clk 0:01:24]} 18. Bg5 {[%clk 0:02:45]}  Bc6 {[%clk 0:01:22]} 19. Qd2 {[%clk 0:02:31]}  O-O-O {[%clk 0:01:18]} 20. Bxf6 {[%clk 0:02:27]}  Bxf6 {[%clk 0:01:08]} 21. Nd5 {[%clk 0:02:27]}  Bxd5 {[%clk 0:01:05]} 22. Bxd5 {[%clk 0:02:28]}  g6 {[%clk 0:01:00]} 23. Re3 {[%clk 0:02:26]}  Kb8 {[%clk 0:00:57]} 24. Rb3 {[%clk 0:02:22]}  b6 {[%clk 0:00:51]} 25. Rc3 {[%clk 0:01:57]}  Qa7 {[%clk 0:00:43]} 26. fxg6 {[%clk 0:01:51]}  b5+ {[%clk 0:00:42]} 27. Kh1 {[%clk 0:01:44]}  Ng4 {[%clk 0:00:31]} 28. Rf1 {[%clk 0:01:41]}  fxg6 {[%clk 0:00:27]} 29. a4 {[%clk 0:01:40]}  b4 {[%clk 0:00:24]} 30. Rc6 {[%clk 0:01:39]}  Be7 {[%clk 0:00:14]} 31. Qxb4+ {[%clk 0:01:36]}  Qb7 {[%clk 0:00:10]} 32. Rc8+ {[%clk 0:01:36]} 1-0


[Site "https://www.chess.com"]